[Event "Kvibergspelen 2022"]
[Site "Kviberg Park Hotel & Conference, Krutvagen 2, Gothenburg, Sweden"]
[Date "2022.10.02"]
[Round "8.1"]
[White "Kucuksari, Kaan"]
[Black "Hillarp, Tiger"]
[Result "1-0"]
[TimeControl "15 minutes + 5 seconds per move from move one (Round 1 - 4) / 90 minutes + 30 seconds per move from move one (Round 5 - 8)"]
[WhiteTitle "FM"]
[BlackTitle "GM"]
[WhiteFideId "6380166"]
[BlackFideId "1700812"]
[WhiteElo "2482"]
[BlackElo "2511"]

1. d4 {[%clk 01:30:59]} Nf6 {[%clk 01:30:23]} {[%emt 00:00:38]} 2. c4 {[%clk
01:31:24]} {[%emt 00:00:05]} e6 {[%clk 01:30:47]} {[%emt 00:00:05]} 3. g3
{[%clk 01:31:49]} {[%emt 00:00:05]} d5 {[%clk 01:31:12]} {[%emt 00:00:05]} 4.
Nf3 {[%clk 01:32:09]} {[%emt 00:00:10]} Bb4+ {[%clk 01:31:35]} {[%emt
00:00:07]} 5. Bd2 {[%clk 01:32:35]} {[%emt 00:00:04]} Be7 {[%clk 01:31:58]}
{[%emt 00:00:07]} 6. Bg2 {[%clk 01:33:02]} {[%emt 00:00:03]} O-O {[%clk
01:32:19]} {[%emt 00:00:10]} 7. O-O {[%clk 01:33:29]} {[%emt 00:00:03]} c6
{[%clk 01:32:36]} {[%emt 00:00:12]} 8. Qc2 {[%clk 01:33:53]} {[%emt 00:00:06]}
Nbd7 {[%clk 01:32:09]} {[%emt 00:00:58]} 9. Rd1 {[%clk 01:34:15]} {[%emt
00:00:08]} b6 {[%clk 01:32:25]} {[%emt 00:00:14]} 10. Bf4 {[%clk 01:34:41]}
{[%emt 00:00:04]} Bb7 {[%clk 01:32:38]} {[%emt 00:00:16]} 11. Ne5 {[%clk
01:35:00]} {[%emt 00:00:11]} Nh5 {[%clk 01:32:51]} {[%emt 00:00:18]} 12. Bd2
{[%clk 01:35:25]} {[%emt 00:00:04]} Nhf6 {[%clk 01:33:14]} {[%emt 00:00:07]} 13.
Bf4 {[%clk 01:35:51]} {[%emt 00:00:03]} Nh5 {[%clk 01:33:35]} {[%emt 00:00:11]}
14. Bd2 {[%clk 01:36:18]} {[%emt 00:00:04]} Nhf6 {[%clk 01:32:24]} {[%emt
00:01:40]} 15. cxd5 {[%clk 01:36:44]} {[%emt 00:00:04]} cxd5 {[%clk 01:32:46]}
{[%emt 00:00:07]} 16. Nc6 {[%clk 01:37:10]} {[%emt 00:00:05]} Bxc6 {[%clk
01:33:08]} {[%emt 00:00:09]} 17. Qxc6 {[%clk 01:37:36]} {[%emt 00:00:03]} Rc8
{[%clk 01:33:32]} {[%emt 00:00:06]} 18. Qb5 {[%clk 01:37:57]} {[%emt 00:00:09]}
Ne8 {[%clk 01:33:52]} {[%emt 00:00:09]} 19. Qd3 {[%clk 01:36:48]} {[%emt
00:01:40]} Nd6 {[%clk 01:34:04]} {[%emt 00:00:18]} 20. Nc3 {[%clk 01:37:11]}
{[%emt 00:00:07]} Nf6 {[%clk 01:34:02]} {[%emt 00:00:32]} 21. b3 {[%clk
01:33:33]} {[%emt 00:04:09]} Qd7 {[%clk 01:31:26]} {[%emt 00:03:05]} 22. f3
{[%clk 01:31:17]} {[%emt 00:02:45]} Nf5 {[%clk 01:17:30]} {[%emt 00:14:26]} 23.
e3 {[%clk 01:30:02]} {[%emt 00:01:45]} h5 {[%clk 01:17:53]} {[%emt 00:00:07]}
24. Ne2 {[%clk 01:27:57]} {[%emt 00:02:36]} Rfd8 {[%clk 01:12:47]} {[%emt
00:05:36]} 25. Rac1 {[%clk 01:25:44]} {[%emt 00:02:43]} a5 {[%clk 01:09:31]}
{[%emt 00:03:46]} 26. Rxc8 {[%clk 01:12:27]} {[%emt 00:13:47]} Rxc8 {[%clk
00:58:46]} {[%emt 00:11:15]} 27. Be1 {[%clk 01:09:46]} {[%emt 00:03:10]} Bb4
{[%clk 00:57:56]} {[%emt 00:01:20]} 28. Bf2 {[%clk 01:01:28]} {[%emt 00:08:49]}
Nd6 {[%clk 00:55:44]} {[%emt 00:02:42]} 29. a4 {[%clk 00:58:14]} {[%emt
00:03:44]} b5 {[%clk 00:37:48]} {[%emt 00:18:25]} 30. e4 {[%clk 00:52:55]}
{[%emt 00:05:50]} dxe4 {[%clk 00:37:59]} {[%emt 00:00:19]} 31. fxe4 {[%clk
00:53:23]} {[%emt 00:00:02]} Ng4 {[%clk 00:38:19]} {[%emt 00:00:10]} 32. e5
{[%clk 00:52:29]} {[%emt 00:01:24]} Nf5 {[%clk 00:38:40]} {[%emt 00:00:08]} 33.
axb5 {[%clk 00:48:55]} {[%emt 00:04:04]} Qa7 {[%clk 00:19:46]} {[%emt
00:19:25]} 34. Be4 {[%clk 00:46:07]} {[%emt 00:03:18]} Nxf2 {[%clk 00:17:22]}
{[%emt 00:02:53]} 35. Kxf2 {[%clk 00:46:32]} {[%emt 00:00:06]} Ne7 {[%clk
00:11:05]} {[%emt 00:06:46]} 36. Qf3 {[%clk 00:34:19]} {[%emt 00:12:43]} g6
{[%emt 00:01:36]} 37. h4 {[%clk 00:33:18]} Nf5 {[%clk 00:07:45]} {[%emt
00:04:15]} 38. Bxf5 {[%clk 00:24:37]} {[%emt 00:09:10]} exf5 {[%clk 00:08:10]}
{[%emt 00:00:05]} 39. Qd5 {[%clk 00:23:36]} {[%emt 00:01:31]} Qb6 {[%clk
00:06:21]} {[%emt 00:02:20]} 40. Nf4 {[%clk 00:13:44]} {[%emt 00:10:22]} Rc2+
{[%clk 00:02:03]} {[%emt 00:04:47]} 41. Kf1 {[%clk 00:05:59]} {[%emt 00:08:15]}
Qc7 {[%clk 00:00:54]} {[%emt 00:01:39]} 42. e6 {[%clk 00:04:25]} {[%emt
00:02:04]} Bd6 {[%clk 00:00:33]} {[%emt 00:00:52]} 43. exf7+ {[%clk 00:04:09]}
{[%emt 00:00:46]} Kh7 {[%clk 00:00:51]} {[%emt 00:00:11]} 44. Qe6 {[%clk
00:01:54]} {[%emt 00:02:46]} Bxf4 {[%clk 00:00:54]} {[%emt 00:00:27]} 45. f8=Q
Rf2+ {[%clk 00:00:54]} 1-0

[Event "Kvibergspelen 2022"]
[Site "Kviberg Park Hotel & Conference, Krutvagen 2, Gothenburg, Sweden"]
[Date "2022.10.02"]
[Round "8.2"]
[White "Hector, Jonny"]
[Black "Stefansson, Vignir Vatnar"]
[Result "1-0"]
[TimeControl "15 minutes + 5 seconds per move from move one (Round 1 - 4) / 90 minutes + 30 seconds per move from move one (Round 5 - 8)"]
[WhiteTitle "GM"]
[BlackTitle "IM"]
[WhiteFideId "1700090"]
[BlackFideId "2308649"]
[WhiteElo "2454"]
[BlackElo "2452"]

1. e4 {[%clk 01:30:55]} {[%emt 00:00:03]} c5 {[%clk 01:30:32]} {[%emt
00:00:29]} 2. Nf3 {[%clk 01:31:16]} {[%emt 00:00:08]} Nc6 {[%clk 01:30:57]}
{[%emt 00:00:06]} 3. Nc3 {[%clk 01:31:39]} {[%emt 00:00:07]} d6 {[%clk
01:31:03]} {[%emt 00:00:24]} 4. d4 {[%clk 01:31:54]} {[%emt 00:00:14]} cxd4
{[%clk 01:31:28]} {[%emt 00:00:06]} 5. Nxd4 {[%clk 01:32:18]} {[%emt 00:00:06]}
Nf6 {[%clk 01:31:50]} {[%emt 00:00:08]} 6. Bg5 {[%clk 01:32:27]} {[%emt
00:00:20]} g6 {[%clk 01:31:41]} {[%emt 00:00:41]} 7. Be2 {[%clk 01:28:42]}
{[%emt 00:04:15]} Bg7 {[%clk 01:29:49]} {[%emt 00:02:22]} 8. Nb3 {[%clk
01:27:56]} {[%emt 00:01:15]} a6 {[%clk 01:28:17]} {[%emt 00:02:03]} 9. O-O
{[%clk 01:27:40]} {[%emt 00:00:44]} b5 {[%clk 01:25:15]} {[%emt 00:03:33]} 10.
a3 {[%clk 01:23:17]} {[%emt 00:04:53]} O-O {[%clk 01:25:13]} {[%emt 00:00:32]}
11. Qd2 {[%clk 01:22:46]} {[%emt 00:01:01]} Ne5 {[%clk 01:17:31]} {[%emt
00:08:12]} 12. Rad1 {[%clk 01:20:25]} {[%emt 00:02:51]} Bb7 {[%clk 01:14:46]}
{[%emt 00:03:16]} 13. Bxf6 {[%clk 01:11:56]} {[%emt 00:08:58]} Bxf6 {[%clk
01:15:03]} {[%emt 00:00:12]} 14. Nd5 {[%clk 01:12:00]} {[%emt 00:00:27]} Bxd5
{[%clk 01:13:31]} {[%emt 00:02:02]} 15. exd5 {[%clk 01:09:58]} {[%emt
00:02:32]} Rc8 {[%clk 01:10:05]} {[%emt 00:03:56]} 16. c3 {[%clk 01:05:36]}
{[%emt 00:04:52]} Qb6 {[%clk 01:08:59]} {[%emt 00:01:36]} 17. Kh1 {[%clk
01:04:09]} {[%emt 00:01:57]} Nc4 {[%clk 01:06:20]} {[%emt 00:03:10]} 18. Qc1
{[%clk 01:03:39]} {[%emt 00:00:59]} Qb7 {[%clk 00:57:43]} {[%emt 00:09:08]} 19.
f4 {[%clk 01:01:32]} {[%emt 00:02:35]} a5 {[%clk 00:52:01]} {[%emt 00:06:13]}
20. Bxc4 {[%clk 00:59:01]} {[%emt 00:03:01]} a4 {[%clk 00:49:42]} {[%emt
00:02:50]} 21. Na5 {[%clk 00:56:02]} {[%emt 00:03:29]} Qb6 {[%clk 00:50:05]}
{[%emt 00:00:07]} 22. Bxb5 {[%clk 00:53:54]} {[%emt 00:02:36]} Qxa5 {[%clk
00:49:27]} {[%emt 00:01:10]} 23. Bc6 {[%clk 00:49:33]} {[%emt 00:04:50]} Rb8
{[%clk 00:49:50]} {[%emt 00:00:07]} 24. Rfe1 {[%clk 00:49:26]} {[%emt
00:00:37]} Qb6 {[%clk 00:48:11]} {[%emt 00:02:09]} 25. Rd2 {[%clk 00:48:34]}
{[%emt 00:01:21]} Qc5 {[%clk 00:43:22]} {[%emt 00:05:20]} 26. Re4 {[%clk
00:46:27]} {[%emt 00:02:36]} e6 {[%clk 00:42:55]} {[%emt 00:00:58]} 27. Rxa4
{[%clk 00:44:46]} {[%emt 00:02:10]} exd5 {[%clk 00:42:57]} {[%emt 00:00:29]} 28.
Bxd5 {[%clk 00:44:36]} {[%emt 00:00:39]} Rfe8 {[%clk 00:43:10]} {[%emt
00:00:18]} 29. Qg1 {[%clk 00:40:38]} {[%emt 00:04:27]} Re3 {[%clk 00:37:56]}
{[%emt 00:05:45]} 30. Rc4 {[%clk 00:37:30]} {[%emt 00:03:38]} Qa7 {[%clk
00:38:21]} {[%emt 00:00:05]} 31. Re4 {[%clk 00:35:55]} {[%emt 00:02:04]} 1-0

[Event "Kvibergspelen 2022"]
[Site "Kviberg Park Hotel & Conference, Krutvagen 2, Gothenburg, Sweden"]
[Date "2022.10.02"]
[Round "8.3"]
[White "Ulff, Johan"]
[Black "Golubka, Petro"]
[Result "0-1"]
[TimeControl "15 minutes + 5 seconds per move from move one (Round 1 - 4) / 90 minutes + 30 seconds per move from move one (Round 5 - 8)"]
[BlackTitle "GM"]
[WhiteFideId "1733893"]
[BlackFideId "14114224"]
[WhiteElo "2132"]
[BlackElo "2360"]

1. d4 {[%emt 00:01:02]} d5 {[%clk 01:21:54]} {[%emt 00:08:04]} 2. Bf4 {[%clk
01:31:02]} {[%emt 00:00:26]} Bg4 {[%clk 01:21:25]} {[%emt 00:00:59]} 3. h3
{[%clk 01:30:57]} {[%emt 00:00:35]} Bh5 {[%clk 01:21:46]} {[%emt 00:00:08]} 4.
c4 {[%clk 01:21:15]} {[%emt 00:10:14]} dxc4 {[%clk 01:18:40]} {[%emt 00:03:35]}
5. Qa4+ {[%clk 01:18:04]} {[%emt 00:03:41]} c6 {[%clk 01:16:42]} {[%emt
00:02:25]} 6. Qxc4 {[%clk 01:17:52]} {[%emt 00:00:45]} Nf6 {[%clk 01:16:19]}
{[%emt 00:00:52]} 7. e3 {[%clk 01:17:48]} {[%emt 00:00:36]} Qb6 {[%clk
01:15:32]} {[%emt 00:01:16]} 8. Nd2 {[%clk 01:11:24]} {[%emt 00:06:54]} e6
{[%clk 01:15:16]} {[%emt 00:00:46]} 9. Ne2 {[%clk 01:06:49]} {[%emt 00:05:05]}
Nbd7 {[%clk 01:14:58]} {[%emt 00:00:48]} 10. Nc3 {[%clk 01:05:18]} {[%emt
00:02:01]} Nd5 {[%clk 01:14:27]} {[%emt 00:01:01]} 11. Nxd5 {[%clk 00:52:41]}
{[%emt 00:13:07]} exd5 {[%clk 01:12:40]} {[%emt 00:02:17]} 12. Qb3 {[%clk
00:41:25]} {[%emt 00:11:46]} Bb4 {[%clk 01:11:44]} {[%emt 00:01:26]} 13. g4
{[%clk 00:29:11]} {[%emt 00:12:45]} Bg6 {[%clk 01:11:50]} {[%emt 00:00:22]} 14.
Bd3 {[%clk 00:29:27]} {[%emt 00:00:15]} a5 {[%clk 01:06:47]} {[%emt 00:05:33]}
15. Bxg6 {[%clk 00:19:10]} {[%emt 00:10:46]} hxg6 {[%clk 01:00:48]} {[%emt
00:06:28]} 16. Qd3 {[%clk 00:19:14]} {[%emt 00:00:27]} c5 {[%clk 00:59:51]}
{[%emt 00:01:27]} 17. Kf1 {[%clk 00:19:05]} {[%emt 00:00:39]} O-O {[%clk
00:58:56]} {[%emt 00:01:25]} 18. Nf3 {[%clk 00:18:51]} {[%emt 00:00:44]} c4
{[%clk 00:59:04]} {[%emt 00:00:22]} 19. Qc2 {[%clk 00:18:33]} {[%emt 00:00:48]}
Nf6 {[%clk 00:59:08]} {[%emt 00:00:26]} 20. Ne5 {[%clk 00:18:18]} {[%emt
00:00:46]} Qe6 {[%clk 00:59:10]} {[%emt 00:00:27]} 21. f3 {[%clk 00:12:58]}
{[%emt 00:05:50]} b5 {[%clk 00:58:27]} {[%emt 00:01:13]} 22. h4 {[%clk
00:12:51]} {[%emt 00:00:36]} Bd6 {[%clk 00:46:00]} {[%emt 00:12:57]} 23. h5
{[%clk 00:12:25]} {[%emt 00:00:57]} g5 {[%clk 00:43:50]} {[%emt 00:02:39]} 24.
Bxg5 {[%clk 00:09:36]} {[%emt 00:03:20]} Bxe5 {[%clk 00:43:12]} {[%emt
00:01:08]} 25. dxe5 {[%clk 00:03:52]} {[%emt 00:06:15]} Nd7 {[%clk 00:42:02]}
{[%emt 00:01:39]} 26. h6 {[%clk 00:02:23]} {[%emt 00:01:58]} g6 {[%clk
00:42:15]} {[%emt 00:00:18]} 27. h7+ {[%clk 00:00:35]} {[%emt 00:02:19]} Kh8
{[%clk 00:42:35]} {[%emt 00:00:10]} 28. Qc3 {[%clk 00:01:02]} {[%emt 00:00:02]}
Nxe5 {[%clk 00:36:38]} {[%emt 00:06:27]} 29. f4 {[%clk 00:00:45]} {[%emt
00:00:48]} f6 {[%clk 00:36:45]} {[%emt 00:00:22]} 30. Bh6 {[%clk 00:01:09]}
{[%emt 00:00:06]} b4 {[%clk 00:32:52]} {[%emt 00:04:23]} 0-1

[Event "Kvibergspelen 2022"]
[Site "Kviberg Park Hotel & Conference, Krutvagen 2, Gothenburg, Sweden"]
[Date "2022.10.02"]
[Round "8.4"]
[White "Agdestein, Simen"]
[Black "Rasti, Arvin"]
[Result "1-0"]
[TimeControl "15 minutes + 5 seconds per move from move one (Round 1 - 4) / 90 minutes + 30 seconds per move from move one (Round 5 - 8)"]
[WhiteTitle "GM"]
[WhiteFideId "1500015"]
[BlackFideId "1741160"]
[WhiteElo "2576"]
[BlackElo "2186"]

1. e4 {[%clk 01:30:45]} {[%emt 00:00:15]} c6 {[%clk 01:30:48]} {[%emt
00:00:13]} 2. d4 {[%clk 01:30:39]} {[%emt 00:00:36]} d5 {[%clk 01:31:08]}
{[%emt 00:00:09]} 3. Nc3 {[%clk 01:30:58]} {[%emt 00:00:11]} dxe4 {[%clk
01:31:31]} {[%emt 00:00:08]} 4. Nxe4 {[%clk 01:31:24]} {[%emt 00:00:03]} Nf6
{[%clk 01:31:53]} {[%emt 00:00:08]} 5. Nxf6+ {[%clk 01:31:46]} {[%emt
00:00:08]} exf6 {[%clk 01:32:22]} {[%emt 00:00:02]} 6. c3 {[%clk 01:31:28]}
{[%emt 00:00:48]} Bd6 {[%clk 01:32:46]} {[%emt 00:00:06]} 7. Bd3 {[%clk
01:31:48]} {[%emt 00:00:08]} O-O {[%clk 01:33:09]} {[%emt 00:00:08]} 8. Qc2
{[%clk 01:32:05]} {[%emt 00:00:13]} Re8+ {[%clk 01:33:33]} {[%emt 00:00:07]} 9.
Ne2 {[%clk 01:32:30]} {[%emt 00:00:05]} h5 {[%clk 01:33:55]} {[%emt 00:00:08]}
10. Be3 {[%clk 01:29:01]} {[%emt 00:04:00]} Nd7 {[%clk 01:34:10]} {[%emt
00:00:14]} 11. O-O-O {[%clk 01:29:17]} {[%emt 00:00:13]} Nf8 {[%clk 01:34:29]}
{[%emt 00:00:11]} 12. c4 {[%clk 01:26:13]} {[%emt 00:03:34]} Be6 {[%clk
01:32:31]} {[%emt 00:02:28]} 13. Kb1 {[%clk 01:23:34]} {[%emt 00:03:09]} Rc8
{[%clk 01:32:41]} {[%emt 00:00:20]} 14. a3 {[%clk 01:20:03]} {[%emt 00:04:01]}
Ng6 {[%clk 01:27:56]} {[%emt 00:05:14]} 15. Ng3 {[%clk 01:12:31]} {[%emt
00:08:02]} h4 {[%clk 01:25:42]} {[%emt 00:02:44]} 16. Nf5 {[%clk 01:09:52]}
{[%emt 00:03:09]} b5 {[%clk 01:23:06]} {[%emt 00:03:07]} 17. g3 {[%clk
01:00:41]} {[%emt 00:09:41]} bxc4 {[%clk 01:19:18]} {[%emt 00:04:18]} 18. Bxc4
{[%clk 01:00:54]} {[%emt 00:00:16]} Bxc4 {[%clk 01:18:13]} {[%emt 00:01:35]} 19.
Qxc4 {[%clk 00:59:49]} {[%emt 00:01:35]} Qd7 {[%clk 01:13:53]} {[%emt
00:04:49]} 20. Nxd6 {[%clk 00:50:01]} {[%emt 00:10:20]} Qxd6 {[%clk 01:14:09]}
{[%emt 00:00:14]} 21. d5 {[%clk 00:49:48]} {[%emt 00:00:43]} cxd5 {[%clk
01:11:21]} {[%emt 00:03:17]} 22. Qxd5 {[%clk 00:47:50]} {[%emt 00:02:28]} Qb8
{[%clk 01:08:12]} {[%emt 00:03:38]} 23. gxh4 {[%clk 00:43:33]} {[%emt
00:04:48]} Nxh4 {[%clk 01:06:05]} {[%emt 00:02:37]} 24. Qa5 {[%clk 00:34:48]}
{[%emt 00:09:15]} Qb3 {[%clk 00:59:44]} {[%emt 00:06:51]} 25. Qd5 {[%clk
00:31:12]} {[%emt 00:04:06]} Qb8 {[%clk 00:58:25]} {[%emt 00:01:50]} 26. Rc1
{[%clk 00:28:44]} {[%emt 00:02:58]} Rxc1+ {[%clk 00:57:56]} {[%emt 00:00:59]}
27. Rxc1 {[%clk 00:27:28]} {[%emt 00:01:46]} Ng6 {[%clk 00:56:22]} {[%emt
00:02:04]} 28. Qd7 {[%clk 00:23:03]} {[%emt 00:04:55]} a6 {[%clk 00:51:42]}
{[%emt 00:05:11]} 29. Qc6 {[%clk 00:21:14]} {[%emt 00:02:19]} Re6 {[%clk
00:50:37]} {[%emt 00:01:34]} 30. Qc8+ {[%clk 00:20:38]} {[%emt 00:01:06]} Qxc8
{[%clk 00:50:57]} {[%emt 00:00:10]} 31. Rxc8+ {[%clk 00:21:04]} {[%emt
00:00:04]} Kh7 {[%clk 00:51:19]} {[%emt 00:00:08]} 32. b4 {[%clk 00:18:16]}
{[%emt 00:03:18]} Ne5 {[%clk 00:45:25]} {[%emt 00:06:24]} 33. h3 {[%clk
00:15:27]} {[%emt 00:03:19]} Kg6 {[%clk 00:43:14]} {[%emt 00:02:41]} 34. Kc2
{[%clk 00:13:18]} {[%emt 00:02:40]} Kf5 {[%clk 00:40:52]} {[%emt 00:02:51]} 35.
a4 {[%clk 00:11:49]} {[%emt 00:02:00]} Rc6+ {[%clk 00:38:24]} {[%emt 00:02:57]}
36. Rxc6 {[%clk 00:12:15]} {[%emt 00:00:04]} Nxc6 {[%clk 00:38:51]} {[%emt
00:00:03]} 37. Kc3 {[%clk 00:12:05]} {[%emt 00:00:41]} Ke6 {[%clk 00:39:16]}
{[%emt 00:00:04]} 38. Kc4 {[%clk 00:09:40]} {[%emt 00:02:55]} Kd7 {[%clk
00:39:38]} {[%emt 00:00:07]} 39. Kc5 {[%clk 00:07:49]} {[%emt 00:02:23]} Kc7
{[%clk 00:39:41]} {[%emt 00:00:27]} 40. Bd2 {[%clk 00:07:27]} {[%emt 00:00:52]}
Kb7 {[%clk 00:35:48]} {[%emt 00:04:23]} 41. Kd6 {[%clk 00:07:08]} {[%emt
00:00:49]} Ne5 {[%clk 00:35:47]} {[%emt 00:00:30]} 42. Ke7 {[%clk 00:06:28]}
{[%emt 00:01:10]} Kc6 {[%clk 00:34:59]} {[%emt 00:01:18]} 43. f4 {[%clk
00:06:10]} {[%emt 00:00:48]} Nc4 {[%clk 00:31:40]} {[%emt 00:03:49]} 44. Be1
{[%clk 00:05:53]} {[%emt 00:00:47]} Nd6 {[%clk 00:30:19]} {[%emt 00:01:51]} 45.
h4 {[%clk 00:06:07]} {[%emt 00:00:16]} Kd5 {[%clk 00:28:07]} {[%emt 00:02:42]}
46. h5 {[%clk 00:05:52]} {[%emt 00:00:46]} Kc6 {[%clk 00:27:44]} {[%emt
00:00:53]} 47. Kf8 {[%clk 00:05:22]} {[%emt 00:01:00]} Kd5 {[%clk 00:26:39]}
{[%emt 00:01:06]} 1-0